[Event "*** Titled Tuesday Blitz"]
[Site "Chess.com"]
[Date "2018.12.04"]
[Round "1"]
[White "capatl"]
[Black "nitpicker"]
[Result "1-0"]
[WhiteElo "2546"]
[BlackElo "2182"]
[TimeControl "180+2"]
[EndTime "13:06:08 PST"]
[Termination "capatl won by resignation"]

1. c4 {[%clk 0:03:01.2]} 1... e5 {[%clk 0:02:59.6]} 2. Nc3 {[%clk 0:03:01.6]}
2... Nf6 {[%clk 0:02:59.6]} 3. g3 {[%clk 0:03:02.9]} 3... Nc6 {[%clk 0:03:00.2]}
4. Bg2 {[%clk 0:03:03.8]} 4... Bc5 {[%clk 0:03:01.2]} 5. e3 {[%clk 0:03:05.3]}
5... h6 {[%clk 0:02:49.8]} 6. Nge2 {[%clk 0:03:06.3]} 6... d6 {[%clk 0:02:49.3]}
7. O-O {[%clk 0:03:07]} 7... a6 {[%clk 0:02:47.2]} 8. a3 {[%clk 0:03:07.6]} 8...
O-O {[%clk 0:02:47.2]} 9. h3 {[%clk 0:03:07]} 9... Rb8 {[%clk 0:02:38.2]} 10. b4
{[%clk 0:03:02.6]} 10... Ba7 {[%clk 0:02:37.1]} 11. Rb1 {[%clk 0:03:01.7]} 11...
Bf5 {[%clk 0:02:35.8]} 12. d3 {[%clk 0:03:02.2]} 12... Qd7 {[%clk 0:02:30.5]}
13. Kh2 {[%clk 0:03:02.8]} 13... b5 {[%clk 0:02:20.7]} 14. cxb5 {[%clk
0:02:47.8]} 14... axb5 {[%clk 0:02:22.6]} 15. a4 {[%clk 0:02:48.8]} 15... Ne7
{[%clk 0:01:33]} 16. Nxb5 {[%clk 0:02:49.1]} 16... Bb6 {[%clk 0:01:33.2]} 17.
Nbc3 {[%clk 0:02:46.9]} 17... d5 {[%clk 0:01:33.6]} 18. e4 {[%clk 0:02:39.1]}
18... dxe4 {[%clk 0:01:28.9]} 19. dxe4 {[%clk 0:02:41]} 19... Qxd1 {[%clk
0:01:28.7]} 20. Rxd1 {[%clk 0:02:42.9]} 20... Be6 {[%clk 0:01:25.6]} 21. Nd5
{[%clk 0:02:39.1]} 21... Nexd5 {[%clk 0:01:22.4]} 22. exd5 {[%clk 0:02:40.2]}
22... Bf5 {[%clk 0:01:24]} 23. Rb2 {[%clk 0:02:37.9]} 23... Bxf2 {[%clk
0:01:24.4]} 24. Rf1 {[%clk 0:02:37.6]} 24... Bd7 {[%clk 0:01:02.7]} 25. Rxf2
{[%clk 0:02:36.8]} 25... Bxa4 {[%clk 0:01:04.6]} 26. Bxh6 {[%clk 0:02:34.6]}
26... Ng4+ {[%clk 0:01:01.4]} 27. hxg4 {[%clk 0:02:35.1]} 27... gxh6 {[%clk
0:01:03.3]} 28. Nc3 {[%clk 0:02:35.5]} 28... Bd7 {[%clk 0:01:03.4]} 29. Ne4
{[%clk 0:02:35.3]} 29... Kg7 {[%clk 0:01:03.2]} 30. Nf6 {[%clk 0:02:32.6]} 30...
Bb5 {[%clk 0:01:04.2]} 31. Nh5+ {[%clk 0:02:31.9]} 31... Kg8 {[%clk 0:01:04]}
32. Be4 {[%clk 0:02:32.5]} 32... Ra8 {[%clk 0:01:00.9]} 33. Rf6 {[%clk
0:02:31.8]} 33... Ra6 {[%clk 0:00:54.5]} 34. Rbf2 {[%clk 0:02:30.9]} 34... Rxf6
{[%clk 0:00:37.9]} 35. Rxf6 {[%clk 0:02:31.7]} 35... Ra8 {[%clk 0:00:34.5]} 36.
Rxh6 {[%clk 0:02:24.8]} 36... Ra2+ {[%clk 0:00:34.5]} 37. Kh3 {[%clk 0:02:23.1]}
37... Bf1+ {[%clk 0:00:33.9]} 38. Kh4 {[%clk 0:02:24.2]} 38... Re2 {[%clk
0:00:27.8]} 39. Kg5 {[%clk 0:02:24.6]} 39... Rxe4 {[%clk 0:00:23.5]} 40. Nf6+
{[%clk 0:02:25.5]} 1-0

[Event "*** Titled Tuesday Blitz"]
[Site "Chess.com"]
[Date "2018.12.04"]
[Round "1"]
[White "PelinGorki"]
[Black "JordanaEmiel"]
[Result "1-0"]
[WhiteElo "2494"]
[BlackElo "2036"]
[TimeControl "180+2"]
[EndTime "13:06:08 PST"]
[Termination "PelinGorki won by resignation"]

1. e4 {[%clk 0:03:00.9]} 1... e5 {[%clk 0:02:58.5]} 2. Nc3 {[%clk 0:03:01.5]}
2... Nc6 {[%clk 0:02:54.1]} 3. Bc4 {[%clk 0:03:02.8]} 3... Nf6 {[%clk
0:02:54.2]} 4. d3 {[%clk 0:03:03.8]} 4... Bc5 {[%clk 0:02:51.1]} 5. f4 {[%clk
0:03:04.8]} 5... d6 {[%clk 0:02:50.6]} 6. Nf3 {[%clk 0:03:05.6]} 6... Bg4 {[%clk
0:02:50.5]} 7. Na4 {[%clk 0:03:06]} 7... Bb6 {[%clk 0:02:50.6]} 8. Nxb6 {[%clk
0:03:06.5]} 8... axb6 {[%clk 0:02:52.5]} 9. c3 {[%clk 0:03:06.9]} 9... O-O
{[%clk 0:02:51.5]} 10. f5 {[%clk 0:03:07.1]} 10... d5 {[%clk 0:02:48.1]} 11.
exd5 {[%clk 0:03:07.8]} 11... Nxd5 {[%clk 0:02:48.1]} 12. O-O {[%clk 0:03:08]}
12... Re8 {[%clk 0:02:25.4]} 13. Qe1 {[%clk 0:02:54.9]} 13... Qd6 {[%clk
0:02:11.6]} 14. Ng5 {[%clk 0:02:51.6]} 14... h6 {[%clk 0:01:51.5]} 15. Ne4
{[%clk 0:02:50.5]} 15... Qd7 {[%clk 0:01:46.6]} 16. Qg3 {[%clk 0:02:51.9]} 16...
Bxf5 {[%clk 0:01:00.4]} 17. Bxd5 {[%clk 0:02:52.4]} 17... Bxe4 {[%clk
0:00:48.6]} 18. Bxe4 {[%clk 0:02:54.3]} 18... Rad8 {[%clk 0:00:46.9]} 19. Bxh6
{[%clk 0:02:52.6]} 19... f6 {[%clk 0:00:42.9]} 20. Rxf6 {[%clk 0:02:52.5]} 20...
Rf8 {[%clk 0:00:41.6]} 21. Raf1 {[%clk 0:02:49.8]} 21... Rxf6 {[%clk 0:00:41.8]}
22. Rxf6 {[%clk 0:02:51.7]} 22... Rf8 {[%clk 0:00:42.7]} 23. Rg6 {[%clk
0:02:46.6]} 23... Rf7 {[%clk 0:00:38.1]} 24. c4 {[%clk 0:02:37.6]} 24... Qd4+
{[%clk 0:00:31.4]} 25. Be3 {[%clk 0:02:37.4]} 25... Qxb2 {[%clk 0:00:32.3]} 26.
h4 {[%clk 0:02:37.5]} 26... Ne7 {[%clk 0:00:27.3]} 27. Rg5 {[%clk 0:02:33.5]}
27... Qa1+ {[%clk 0:00:17.7]} 28. Kh2 {[%clk 0:02:34]} 28... Rf1 {[%clk
0:00:16.8]} 29. Rxg7+ {[%clk 0:02:34.1]} 29... Kf8 {[%clk 0:00:18.1]} 30. Qg5
{[%clk 0:02:29.2]} 30... Rh1+ {[%clk 0:00:17.1]} 31. Kg3 {[%clk 0:02:30.6]}
31... Qe1+ {[%clk 0:00:10.2]} 32. Bf2 {[%clk 0:02:31.9]} 32... Qxf2+ {[%clk
0:00:03.1]} 33. Kxf2 {[%clk 0:02:21.6]} 1-0

[Event "*** Titled Tuesday Blitz"]
[Site "Chess.com"]
[Date "2018.12.04"]
[Round "1"]
[White "Gr3egor"]
[Black "AsaHoffmann"]
[Result "1/2-1/2"]
[WhiteElo "2491"]
[BlackElo "2093"]
[TimeControl "180+2"]
[EndTime "13:06:33 PST"]
[Termination "Game drawn by agreement"]

1. d4 {[%clk 0:03:01]} 1... Nf6 {[%clk 0:02:56.1]} 2. c4 {[%clk 0:03:01]} 2...
c5 {[%clk 0:02:56.5]} 3. d5 {[%clk 0:03:01.8]} 3... e5 {[%clk 0:02:56.8]} 4.
dxe6 {[%clk 0:03:01]} 4... fxe6 {[%clk 0:02:57]} 5. Nc3 {[%clk 0:03:02.5]} 5...
d5 {[%clk 0:02:57.5]} 6. Bg5 {[%clk 0:03:03.7]} 6... d4 {[%clk 0:02:56.9]} 7.
Ne4 {[%clk 0:03:05.1]} 7... Be7 {[%clk 0:02:57.5]} 8. Bxf6 {[%clk 0:03:01.1]}
8... Bxf6 {[%clk 0:02:55.1]} 9. Nf3 {[%clk 0:03:01.3]} 9... b6 {[%clk 0:02:52]}
10. g3 {[%clk 0:03:01.1]} 10... Bb7 {[%clk 0:02:52.5]} 11. Nfd2 {[%clk
0:02:57.9]} 11... O-O {[%clk 0:02:51.5]} 12. Bg2 {[%clk 0:02:59]} 12... Qd7
{[%clk 0:02:47.9]} 13. O-O {[%clk 0:02:58.4]} 13... Nc6 {[%clk 0:02:48.3]} 14.
f4 {[%clk 0:02:53.8]} 14... Rae8 {[%clk 0:02:40.4]} 15. g4 {[%clk 0:02:43]}
15... Bd8 {[%clk 0:02:37.6]} 16. a3 {[%clk 0:02:34.8]} 16... Bc7 {[%clk
0:02:37.4]} 17. Qe1 {[%clk 0:02:01.9]} 17... Bxf4 {[%clk 0:02:32.9]} 18. Qh4
{[%clk 0:02:01.8]} 18... h6 {[%clk 0:02:23.3]} 19. Kh1 {[%clk 0:01:57.7]} 19...
Qe7 {[%clk 0:02:20.5]} 20. Qh5 {[%clk 0:01:57.7]} 20... Be3 {[%clk 0:02:08]} 21.
Nf3 {[%clk 0:01:52.5]} 21... Nd8 {[%clk 0:01:59.2]} 22. Ne5 {[%clk 0:01:49.7]}
22... Rxf1+ {[%clk 0:01:46.7]} 23. Rxf1 {[%clk 0:01:49.9]} 23... Rf8 {[%clk
0:01:47.5]} 24. Rxf8+ {[%clk 0:01:24.1]} 24... Qxf8 {[%clk 0:01:48.1]} 25. Nd7
{[%clk 0:00:48.6]} 25... Qf7 {[%clk 0:01:22.8]} 26. Qxf7+ {[%clk 0:00:48.8]}
26... Kxf7 {[%clk 0:01:23.3]} 27. Nd6+ {[%clk 0:00:49.2]} 27... Ke7 {[%clk
0:01:23.9]} 28. Nxb7 {[%clk 0:00:43.3]} 28... Kxd7 {[%clk 0:01:21.5]} 29. Nxd8
{[%clk 0:00:44]} 29... Kxd8 {[%clk 0:01:21.9]} 30. b3 {[%clk 0:00:45.2]} 30...
Ke7 {[%clk 0:01:21.9]} 31. Be4 {[%clk 0:00:46.3]} 31... Kf6 {[%clk 0:01:22.1]}
32. Kg2 {[%clk 0:00:47.9]} 32... g5 {[%clk 0:01:22.7]} 33. Kf3 {[%clk 0:00:49]}
33... Ke5 {[%clk 0:01:23.5]} 34. h3 {[%clk 0:00:50.2]} 34... Bf4 {[%clk
0:01:24.3]} 35. Bd3 {[%clk 0:00:50.8]} 35... a6 {[%clk 0:01:25]} 36. a4 {[%clk
0:00:51.7]} 36... a5 {[%clk 0:01:24.9]} 37. Be4 {[%clk 0:00:52.5]} 37... Bd2
{[%clk 0:01:24.4]} 38. Bd3 {[%clk 0:00:53.6]} 1/2-1/2

[Event "*** Titled Tuesday Blitz"]
[Site "Chess.com"]
[Date "2018.12.04"]
[Round "1"]
[White "NTDVAN"]
[Black "GreatDamnedRedSpot"]
[Result "1-0"]
[WhiteElo "2645"]
[BlackElo "2321"]
[TimeControl "180+2"]
[EndTime "13:06:38 PST"]
[Termination "NTDVAN won by resignation"]

1. e4 {[%clk 0:03:01.9]} 1... e6 {[%clk 0:02:59.8]} 2. d4 {[%clk 0:03:02.5]}
2... d5 {[%clk 0:03:00]} 3. Nc3 {[%clk 0:03:03.7]} 3... dxe4 {[%clk 0:03:01.1]}
4. Nxe4 {[%clk 0:03:04.7]} 4... Bd7 {[%clk 0:03:02.7]} 5. Nf3 {[%clk 0:03:04.9]}
5... Bc6 {[%clk 0:03:04.1]} 6. Bd3 {[%clk 0:03:06.1]} 6... Nd7 {[%clk
0:03:05.2]} 7. O-O {[%clk 0:03:07.2]} 7... Ngf6 {[%clk 0:03:06.4]} 8. Ng3 {[%clk
0:03:08.6]} 8... Be7 {[%clk 0:03:06.9]} 9. c4 {[%clk 0:03:04.2]} 9... Bxf3
{[%clk 0:03:03.1]} 10. Qxf3 {[%clk 0:03:04.9]} 10... c6 {[%clk 0:03:04.7]} 11.
b3 {[%clk 0:03:05.5]} 11... O-O {[%clk 0:03:05.5]} 12. Bb2 {[%clk 0:03:06.9]}
12... a5 {[%clk 0:03:06]} 13. a3 {[%clk 0:03:05.2]} 13... Re8 {[%clk 0:03:05]}
14. Rad1 {[%clk 0:03:05.6]} 14... Qb6 {[%clk 0:03:02]} 15. Rfe1 {[%clk
0:03:06.1]} 15... Nf8 {[%clk 0:02:44.4]} 16. Bc2 {[%clk 0:03:05.9]} 16... Qa6
{[%clk 0:02:41.7]} 17. Nf1 {[%clk 0:03:05]} 17... a4 {[%clk 0:02:34.8]} 18. bxa4
{[%clk 0:02:41.8]} 18... Qxc4 {[%clk 0:02:34.1]} 19. Ne3 {[%clk 0:02:43.7]}
19... Qa6 {[%clk 0:02:30.9]} 20. h4 {[%clk 0:02:43.3]} 20... Nd5 {[%clk
0:02:25]} 21. h5 {[%clk 0:02:44.2]} 21... Nxe3 {[%clk 0:02:06.9]} 22. fxe3
{[%clk 0:02:40.8]} 22... Nd7 {[%clk 0:02:00.8]} 23. Rf1 {[%clk 0:02:38.3]} 23...
Rf8 {[%clk 0:01:55.8]} 24. Qe4 {[%clk 0:02:32.9]} 24... g6 {[%clk 0:01:42.5]}
25. hxg6 {[%clk 0:02:16.8]} 25... hxg6 {[%clk 0:01:38.8]} 26. Qg4 {[%clk
0:02:05.9]} 26... Nf6 {[%clk 0:00:57.5]} 27. Qh3 {[%clk 0:02:05.7]} 27... Qb6
{[%clk 0:00:45.1]} 28. Bc3 {[%clk 0:02:04.4]} 28... Nh7 {[%clk 0:00:33.3]} 29.
Bxg6 {[%clk 0:01:59]} 29... Ng5 {[%clk 0:00:21.3]} 30. Qh5 {[%clk 0:01:54.9]}
30... Qb3 {[%clk 0:00:11.7]} 31. Rd3 {[%clk 0:01:40.8]} 1-0

[Event "*** Titled Tuesday Blitz"]
[Site "Chess.com"]
[Date "2018.12.04"]
[Round "1"]
[White "nurmiTV"]
[Black "Atanejhad"]
[Result "0-1"]
[WhiteElo "2542"]
[BlackElo "2246"]
[TimeControl "180+2"]
[EndTime "13:06:42 PST"]
[Termination "Atanejhad won by resignation"]

1. c4 {[%clk 0:02:59.2]} 1... Nf6 {[%clk 0:03:00.3]} 2. Nc3 {[%clk 0:03:00.6]}
2... e6 {[%clk 0:03:00.5]} 3. e4 {[%clk 0:03:01]} 3... d5 {[%clk 0:02:58.8]} 4.
e5 {[%clk 0:03:02]} 4... d4 {[%clk 0:02:58.2]} 5. exf6 {[%clk 0:03:03.6]} 5...
dxc3 {[%clk 0:02:57.5]} 6. bxc3 {[%clk 0:03:05.1]} 6... Qxf6 {[%clk 0:02:55.9]}
7. Nf3 {[%clk 0:03:06.7]} 7... e5 {[%clk 0:02:53.6]} 8. Bd3 {[%clk 0:03:05.6]}
8... Na6 {[%clk 0:02:50.5]} 9. Qe2 {[%clk 0:02:59.5]} 9... Bd6 {[%clk
0:02:47.7]} 10. O-O {[%clk 0:02:49.2]} 10... O-O {[%clk 0:02:48.7]} 11. h3
{[%clk 0:02:42.2]} 11... Re8 {[%clk 0:02:47]} 12. Bc2 {[%clk 0:02:03.9]} 12...
Bf5 {[%clk 0:02:47.4]} 13. d3 {[%clk 0:01:53.6]} 13... Nc5 {[%clk 0:02:47]} 14.
Ng5 {[%clk 0:01:48.4]} 14... Qg6 {[%clk 0:02:44.2]} 15. Ne4 {[%clk 0:01:28.6]}
15... Nxe4 {[%clk 0:02:41.1]} 16. dxe4 {[%clk 0:01:28.5]} 16... Bxh3 {[%clk
0:02:42.6]} 17. f3 {[%clk 0:01:29.5]} 17... Bc5+ {[%clk 0:02:38.3]} 18. Kh2
{[%clk 0:01:30]} 18... Be6 {[%clk 0:02:19.4]} 19. g4 {[%clk 0:01:30.4]} 19... h5
{[%clk 0:02:16]} 20. g5 {[%clk 0:01:27.7]} 20... f6 {[%clk 0:02:14.8]} 21. gxf6
{[%clk 0:01:12.1]} 21... Qxf6 {[%clk 0:02:15.4]} 22. Rh1 {[%clk 0:01:02.6]}
22... Rf8 {[%clk 0:02:09.6]} 23. Kg2 {[%clk 0:01:01.5]} 23... Qf7 {[%clk
0:02:07.1]} 24. Bd3 {[%clk 0:00:58.1]} 24... Rad8 {[%clk 0:02:06.4]} 25. Be3
{[%clk 0:00:58.1]} 25... Rxd3 {[%clk 0:01:46.6]} 26. Bxc5 {[%clk 0:00:58.5]}
26... Qxf3+ {[%clk 0:01:47.5]} 27. Qxf3 {[%clk 0:00:57.5]} 27... Rfxf3 {[%clk
0:01:49.4]} 28. Rxh5 {[%clk 0:00:55.1]} 28... Rg3+ {[%clk 0:01:46.8]} 29. Kf2
{[%clk 0:00:53.2]} 29... Rdf3+ {[%clk 0:01:47.3]} 30. Ke1 {[%clk 0:00:53.7]}
30... g5 {[%clk 0:01:39.6]} 31. Rh1 {[%clk 0:00:50.8]} 31... Rxc3 {[%clk
0:01:39]} 32. Bf2 {[%clk 0:00:49.7]} 32... Rg2 {[%clk 0:01:38.1]} 33. Rd1 {[%clk
0:00:50.5]} 33... Rc2 {[%clk 0:01:32.6]} 34. Rf1 {[%clk 0:00:50.4]} 34... Bxc4
{[%clk 0:01:32.3]} 35. Rd8+ {[%clk 0:00:48]} 35... Kg7 {[%clk 0:01:32.8]} 36.
Rg1 {[%clk 0:00:46.2]} 36... Rcxf2 {[%clk 0:01:30.2]} 0-1

[Event "*** Titled Tuesday Blitz"]
[Site "Chess.com"]
[Date "2018.12.04"]
[Round "1"]
[White "m3alam"]
[Black "AndrBaryshpolets"]
[Result "0-1"]
[WhiteElo "2187"]
[BlackElo "2553"]
[TimeControl "180+2"]
[EndTime "13:06:44 PST"]
[Termination "AndrBaryshpolets won on time"]

1. d4 {[%clk 0:03:00]} 1... d5 {[%clk 0:03:00.2]} 2. Nf3 {[%clk 0:02:58.7]} 2...
Nf6 {[%clk 0:03:01.3]} 3. c4 {[%clk 0:02:58.1]} 3... e6 {[%clk 0:03:02.2]} 4. g3
{[%clk 0:02:56.8]} 4... dxc4 {[%clk 0:03:02.4]} 5. Bg2 {[%clk 0:02:55.8]} 5...
a6 {[%clk 0:03:03.7]} 6. a4 {[%clk 0:02:52.4]} 6... Nc6 {[%clk 0:02:50.5]} 7.
O-O {[%clk 0:02:16.3]} 7... Rb8 {[%clk 0:02:49.4]} 8. Nc3 {[%clk 0:01:41.9]}
8... Bd6 {[%clk 0:02:10]} 9. e4 {[%clk 0:01:36]} 9... e5 {[%clk 0:02:06.1]} 10.
dxe5 {[%clk 0:00:44.7]} 10... Nxe5 {[%clk 0:02:08]} 11. Nxe5 {[%clk 0:00:42.9]}
11... Bxe5 {[%clk 0:02:09.9]} 12. Qxd8+ {[%clk 0:00:32.1]} 12... Kxd8 {[%clk
0:02:11.8]} 13. Rd1+ {[%clk 0:00:25.5]} 13... Bd7 {[%clk 0:01:40.4]} 14. f4
{[%clk 0:00:24.8]} 14... Bxc3 {[%clk 0:01:41.2]} 15. bxc3 {[%clk 0:00:25]} 15...
Kc8 {[%clk 0:01:39.6]} 16. e5 {[%clk 0:00:16.3]} 16... Ng8 {[%clk 0:01:19.3]}
17. Rd4 {[%clk 0:00:13.6]} 17... Be6 {[%clk 0:01:12.1]} 18. Be3 {[%clk
0:00:07.4]} 18... Nh6 {[%clk 0:01:01.6]} 19. Bf2 {[%clk 0:00:02.2]} 19... Nf5
{[%clk 0:00:43.6]} 0-1

[Event "*** Titled Tuesday Blitz"]
[Site "Chess.com"]
[Date "2018.12.04"]
[Round "1"]
[White "ddtru"]
[Black "snowlord"]
[Result "0-1"]
[WhiteElo "2336"]
[BlackElo "2650"]
[TimeControl "180+2"]
[EndTime "13:06:46 PST"]
[Termination "snowlord won by resignation"]

1. d4 {[%clk 0:02:59.5]} 1... Nf6 {[%clk 0:03:00.7]} 2. Nf3 {[%clk 0:03:00.3]}
2... d6 {[%clk 0:03:02.3]} 3. c3 {[%clk 0:03:01.1]} 3... Bf5 {[%clk 0:03:02.4]}
4. g3 {[%clk 0:03:00.8]} 4... e6 {[%clk 0:03:03.7]} 5. Bg2 {[%clk 0:03:02]} 5...
c6 {[%clk 0:03:05.3]} 6. O-O {[%clk 0:03:01.7]} 6... h6 {[%clk 0:03:06.1]} 7.
Nbd2 {[%clk 0:02:56.8]} 7... Be7 {[%clk 0:03:04.4]} 8. b3 {[%clk 0:02:57.7]}
8... O-O {[%clk 0:03:05]} 9. Bb2 {[%clk 0:02:58.7]} 9... d5 {[%clk 0:03:01.6]}
10. Re1 {[%clk 0:02:48.8]} 10... a5 {[%clk 0:03:01.1]} 11. Nh4 {[%clk
0:02:38.2]} 11... Bh7 {[%clk 0:03:01.6]} 12. e3 {[%clk 0:02:22.3]} 12... a4
{[%clk 0:02:58.8]} 13. Qe2 {[%clk 0:02:23.4]} 13... a3 {[%clk 0:02:52.7]} 14.
Bc1 {[%clk 0:02:23.6]} 14... c5 {[%clk 0:02:52.2]} 15. dxc5 {[%clk 0:01:55.4]}
15... Bxc5 {[%clk 0:02:48.4]} 16. e4 {[%clk 0:01:56.5]} 16... Nc6 {[%clk
0:02:37.2]} 17. e5 {[%clk 0:01:47.1]} 17... Nd7 {[%clk 0:02:36]} 18. Nhf3 {[%clk
0:01:36.8]} 18... d4 {[%clk 0:02:14.8]} 19. Ne4 {[%clk 0:01:15.7]} 19... dxc3
{[%clk 0:02:05]} 20. Nxc3 {[%clk 0:01:15.4]} 20... Ndxe5 {[%clk 0:01:42]} 21.
Nxe5 {[%clk 0:01:14.4]} 21... Nxe5 {[%clk 0:01:39]} 22. Bxb7 {[%clk 0:01:06.9]}
22... Nd3 {[%clk 0:01:34.1]} 23. Be3 {[%clk 0:00:58.2]} 23... Bxe3 {[%clk
0:01:24]} 24. fxe3 {[%clk 0:00:51.6]} 24... Nxe1 {[%clk 0:01:04.5]} 25. Bxa8
{[%clk 0:00:40.9]} 25... Nc2 {[%clk 0:01:03.8]} 26. Rc1 {[%clk 0:00:28.8]} 26...
Qxa8 {[%clk 0:01:04.6]} 27. Rxc2 {[%clk 0:00:30.3]} 27... Bxc2 {[%clk
0:01:05.5]} 28. Qxc2 {[%clk 0:00:31.4]} 28... Rc8 {[%clk 0:01:05.6]} 29. Qd2
{[%clk 0:00:31.1]} 29... Qa5 {[%clk 0:01:04.7]} 0-1

[Event "*** Titled Tuesday Blitz"]
[Site "Chess.com"]
[Date "2018.12.04"]
[Round "1"]
[White "Alexander_Moskalenko"]
[Black "biostatistician"]
[Result "1-0"]
[WhiteElo "2851"]
[BlackElo "2443"]
[TimeControl "180+2"]
[EndTime "13:06:47 PST"]
[Termination "Alexander_Moskalenko won by resignation"]

1. d4 {[%clk 0:02:59.7]} 1... Nf6 {[%clk 0:01:20.1]} 2. c4 {[%clk 0:02:58.3]}
2... g6 {[%clk 0:01:22]} 3. g3 {[%clk 0:02:47.7]} 3... Bg7 {[%clk 0:01:23.9]} 4.
Bg2 {[%clk 0:02:49]} 4... O-O {[%clk 0:01:25.4]} 5. Nc3 {[%clk 0:02:50.5]} 5...
c5 {[%clk 0:01:22.7]} 6. d5 {[%clk 0:02:51]} 6... d6 {[%clk 0:01:23.5]} 7. Nf3
{[%clk 0:02:52]} 7... e5 {[%clk 0:01:24.8]} 8. O-O {[%clk 0:02:51.9]} 8... Nh5
{[%clk 0:01:25.2]} 9. e4 {[%clk 0:02:25.1]} 9... Na6 {[%clk 0:01:25.7]} 10. a3
{[%clk 0:02:22.3]} 10... Bd7 {[%clk 0:01:16.9]} 11. Rb1 {[%clk 0:02:22]} 11...
Nc7 {[%clk 0:01:16.8]} 12. b4 {[%clk 0:02:18.8]} 12... b6 {[%clk 0:01:18.2]} 13.
Bd2 {[%clk 0:02:20.2]} 13... Qe7 {[%clk 0:01:16.8]} 14. bxc5 {[%clk 0:02:16.6]}
14... bxc5 {[%clk 0:01:17.7]} 15. Rb7 {[%clk 0:02:17.5]} 15... Bc8 {[%clk
0:01:17]} 16. Rb2 {[%clk 0:02:18.3]} 16... f5 {[%clk 0:01:15.8]} 17. exf5 {[%clk
0:02:12.9]} 17... Bxf5 {[%clk 0:01:12.1]} 18. Rb7 {[%clk 0:02:04.8]} 18... Bc8
{[%clk 0:01:12.3]} 19. Rb2 {[%clk 0:02:03.9]} 19... Nf6 {[%clk 0:01:12.3]} 20.
Ng5 {[%clk 0:02:01.9]} 20... Ba6 {[%clk 0:01:03.7]} 21. Qa4 {[%clk 0:02:02.3]}
21... Rab8 {[%clk 0:01:02.6]} 22. Rfb1 {[%clk 0:02:02.9]} 22... Rxb2 {[%clk
0:00:57.9]} 23. Rxb2 {[%clk 0:02:04.8]} 23... e4 {[%clk 0:00:36.5]} 24. Rb1
{[%clk 0:01:53.4]} 24... Bc8 {[%clk 0:00:13.1]} 25. Ngxe4 {[%clk 0:01:52.5]}
25... Nxe4 {[%clk 0:00:14.2]} 26. Nxe4 {[%clk 0:01:53.1]} 26... Bf5 {[%clk
0:00:15.8]} 27. Re1 {[%clk 0:01:53.8]} 27... Bxe4 {[%clk 0:00:11.9]} 28. Rxe4
{[%clk 0:01:53.7]} 28... Qf6 {[%clk 0:00:12.8]} 29. Rf4 {[%clk 0:01:51.3]} 29...
Qa1+ {[%clk 0:00:14.1]} 30. Bf1 {[%clk 0:01:52.6]} 30... Rxf4 {[%clk 0:00:14.6]}
31. Bxf4 {[%clk 0:01:54.5]} 31... Bd4 {[%clk 0:00:15.2]} 32. Qd7 {[%clk
0:01:44.4]} 32... Qb2 {[%clk 0:00:15.8]} 33. Qd8+ {[%clk 0:01:45.1]} 33... Kf7
{[%clk 0:00:15.7]} 34. Qxc7+ {[%clk 0:01:46.6]} 1-0

[Event "*** Titled Tuesday Blitz"]
[Site "Chess.com"]
[Date "2018.12.04"]
[Round "1"]
[White "Laico"]
[Black "eldur16"]
[Result "0-1"]
[WhiteElo "2258"]
[BlackElo "2601"]
[TimeControl "180+2"]
[EndTime "13:06:48 PST"]
[Termination "eldur16 won by resignation"]

1. e4 {[%clk 0:03:01.9]} 1... g6 {[%clk 0:02:59.9]} 2. d4 {[%clk 0:02:58.5]}
2... Bg7 {[%clk 0:03:00.3]} 3. Nf3 {[%clk 0:02:56.9]} 3... d6 {[%clk 0:03:00.5]}
4. Nc3 {[%clk 0:02:54.5]} 4... a6 {[%clk 0:02:59.7]} 5. a4 {[%clk 0:02:54.2]}
5... b6 {[%clk 0:02:59.1]} 6. Be2 {[%clk 0:02:47.3]} 6... Nd7 {[%clk 0:02:58.7]}
7. Be3 {[%clk 0:02:44.6]} 7... Bb7 {[%clk 0:02:58.9]} 8. O-O {[%clk 0:02:33]}
8... Ngf6 {[%clk 0:02:57.3]} 9. Nd2 {[%clk 0:02:33.5]} 9... e5 {[%clk
0:02:54.1]} 10. dxe5 {[%clk 0:02:28.1]} 10... dxe5 {[%clk 0:02:49.2]} 11. f3
{[%clk 0:02:17.2]} 11... Qe7 {[%clk 0:02:46.9]} 12. Bc4 {[%clk 0:02:01.7]} 12...
O-O {[%clk 0:02:45]} 13. Qe2 {[%clk 0:02:01.2]} 13... c6 {[%clk 0:02:42.5]} 14.
Bg5 {[%clk 0:01:48]} 14... b5 {[%clk 0:02:41.5]} 15. axb5 {[%clk 0:01:41.1]}
15... axb5 {[%clk 0:02:42]} 16. Bb3 {[%clk 0:01:07.8]} 16... Nc5 {[%clk
0:02:40.2]} 17. Rfd1 {[%clk 0:00:57.7]} 17... h6 {[%clk 0:02:38.2]} 18. Bh4
{[%clk 0:00:54.8]} 18... b4 {[%clk 0:02:28.9]} 19. Na4 {[%clk 0:00:52.8]} 19...
Ba6 {[%clk 0:02:24.4]} 20. Qe3 {[%clk 0:00:48.9]} 20... Nxb3 {[%clk 0:02:19.4]}
21. Nxb3 {[%clk 0:00:50.8]} 21... Bb5 {[%clk 0:02:17]} 22. Nac5 {[%clk
0:00:51.4]} 22... Bc4 {[%clk 0:01:51.1]} 23. Qe1 {[%clk 0:00:48.8]} 23... Bxb3
{[%clk 0:01:49.6]} 24. Nxb3 {[%clk 0:00:49]} 24... Qb7 {[%clk 0:01:44.3]} 25.
Nc5 {[%clk 0:00:43.3]} 25... Qb5 {[%clk 0:01:43.1]} 26. Qf2 {[%clk 0:00:35.6]}
26... Rfe8 {[%clk 0:01:34]} 27. h3 {[%clk 0:00:28.4]} 27... Nh5 {[%clk
0:01:29.1]} 28. Nd3 {[%clk 0:00:22.1]} 28... g5 {[%clk 0:01:18.4]} 29. Bg3
{[%clk 0:00:22]} 29... Nf4 {[%clk 0:01:18.8]} 30. Bxf4 {[%clk 0:00:21]} 30...
exf4 {[%clk 0:01:19.1]} 31. b3 {[%clk 0:00:21.7]} 31... Rxa1 {[%clk 0:01:17.9]}
32. Rxa1 {[%clk 0:00:22.4]} 32... Bxa1 {[%clk 0:01:18.2]} 0-1